fUSD/lending_fUSD_20250211
["ID","MTS","AMOUNT","RATE_DAILY","PERIOD"]
[352721117,1739273445360,-500.0,0.00010958,2]
[352721118,1739273445369,-2025.27,0.00010958,2]
[352721119,1739273445379,-596.65,0.00010958,2]
[352721120,1739273445388,-1007.95,0.00010958,2]
[352721121,1739273445398,-500.0,0.00010958,2]
[352721122,1739273445408,-2219.38,0.00010958,2]
[352721123,1739273445417,-500.0,0.00010958,2]
[352721124,1739273445427,-1230.26,0.00010958,2]
[352721125,1739273445440,-500.0,0.00010958,2]
[352721126,1739273445450,-660.97,0.00010958,2]
[352721127,1739273445459,-500.0,0.00010958,2]
[352721128,1739273445470,-1992.06,0.00010958,2]
[352721129,1739273445480,-500.0,0.00010958,2]
[352721130,1739273445489,-568.61,0.00010958,2]
[352721131,1739273445499,-1387.32,0.00010958,2]
[352721132,1739273445510,-2433.22,0.00010958,2]
[352721133,1739273445520,-500.0,0.00010958,2]
[352721134,1739273445529,-1470.34,0.00010958,2]
[352721135,1739273445539,-887.01,0.00010958,2]
[352721136,1739273445548,-509.51,0.00010958,2]
[352721137,1739273445558,-500.0,0.00010958,2]
[352721138,1739273445568,-2465.1,0.00010958,2]
[352721139,1739273445577,-994.37,0.00010958,2]
[352721140,1739273445586,-1842.63,0.00010958,2]
[352721141,1739273445596,-500.0,0.00010958,2]
[352721142,1739273445605,-3226.84,0.00010958,2]
[352721143,1739273445614,-524.51,0.00010958,2]
[352721144,1739273445623,-2200.43,0.00010958,2]
[352721145,1739273445633,-2035.26,0.00010958,2]
[352721146,1739273445642,-500.0,0.00010958,2]
[352721147,1739273445651,-500.0,0.00010958,2]
[352721148,1739273445661,-1352.01,0.00010958,2]
[352721149,1739273445670,-3231.45,0.00010958,2]
[352721150,1739273445679,-500.0,0.00010958,2]
[352721151,1739273445689,-693.11,0.00010958,2]
[352721152,1739273445698,-2560.5,0.00010958,2]
[352721153,1739273445707,-666.66,0.00010958,2]
[352721154,1739273445717,-1277.64,0.00010958,2]
[352721155,1739273445726,-1558.69,0.00010958,2]
[352721156,1739273445736,-4040.02,0.00010958,2]
[352721157,1739273445745,-500.0,0.00010958,2]
[352721158,1739273445754,-500.0,0.00010958,2]
[352721159,1739273445763,-2342.75,0.00010958,2]
[352721160,1739273445773,-1475.4,0.00010958,2]
[352721161,1739273445783,-2383.15,0.00010958,2]
[352721162,1739273445793,-500.0,0.00010958,2]
[352721163,1739273445802,-692.25,0.00010958,2]
[352721164,1739273445812,-3196.78,0.00010958,2]
[352721165,1739273445821,-661.49,0.00010958,2]
[352721166,1739273445830,-500.0,0.00010958,2]
[352721167,1739273445839,-1648.05,0.00010958,2]
[352721168,1739273445848,-500.0,0.00010958,2]
[352721169,1739273445858,-2090.34,0.00010958,2]
[352721170,1739273445867,-500.0,0.00010958,2]
[352721171,1739273445876,-500.0,0.00010958,2]
[352721172,1739273445886,-2063.9,0.00010958,2]
[352721173,1739273445895,-273.95764954,0.00010958,2]
[352721174,1739273446101,-1674.69235046,0.00010958,2]
[352721175,1739273446111,-640.85,0.00010958,2]
[352721176,1739273446120,-2191.34,0.00010958,2]
[352721177,1739273446129,-500.0,0.00010958,2]
[352721178,1739273446138,-1815.65,0.00010958,2]
[352721179,1739273446147,-2784.35,0.00010958,2]
[352721180,1739273446157,-2018.82,0.00010958,2]
[352721181,1739273446166,-1834.49286,0.00010958,2]
[352721182,1739273446176,-2316.2,0.00010958,2]
[352721183,1739273446184,-1274.45,0.00010958,2]
[352721184,1739273446194,-500.0,0.00010958,2]
[352721185,1739273446203,-500.0,0.00010958,2]
[352721186,1739273446212,-1011.34,0.00010958,2]
[352721187,1739273446222,-1324.69,0.00010958,2]
[352721188,1739273446235,-500.0,0.00010958,2]
[352721189,1739273446244,-3087.51,0.00010958,2]
[352721190,1739273446253,-7618.19,0.00010958,2]
[352721191,1739273446263,-1003.02,0.00010958,2]
[352721192,1739273446272,-1892.75,0.00010958,2]
[352721193,1739273446281,-2721.12,0.00010958,2]
[352721194,1739273446291,-2136.72,0.00010958,2]
[352721195,1739273446497,-500.0,0.00010958,2]
[352721196,1739273446510,-500.0,0.00010958,2]
[352721197,1739273446520,-2822.25,0.00010958,2]
[352721198,1739273446530,-500.0,0.00010958,2]
[352721199,1739273446539,-2073.66,0.00010958,2]
[352721200,1739273446549,-925.91,0.00010958,2]
[352721201,1739273446559,-500.0,0.00010958,2]
[352721202,1739273446568,-500.0,0.00010958,2]
[352721203,1739273446577,-2190.44,0.00010958,2]
[352721204,1739273446587,-2654.39,0.00010958,2]
[352721205,1739273446597,-500.0,0.00010958,2]
[352721206,1739273446611,-3580.61,0.00010958,2]
[352721207,1739273446620,-500.0,0.00010958,2]
[352721208,1739273446630,-2571.37,0.00010958,2]
[352721209,1739273446640,-1046.69,0.00010958,2]
[352721210,1739273446649,-2407.9,0.00010958,2]
[352721211,1739273446659,-2043.8,0.00010958,2]
[352721212,1739273446669,-500.0,0.00010958,2]
[352721214,1739273446679,-2056.23,0.00010958,2]
[352721216,1739273446690,-500.0,0.00010958,2]
[352721218,1739273446700,-1350.33,0.00010958,2]
[352721220,1739273446710,-1853.24,0.00010958,2]
[352721222,1739273446721,-1099.78,0.00010958,2]
[352721224,1739273446731,-195.090942,0.00010958,2]
[352721226,1739273446741,-2669.17,0.00010958,2]
[352721228,1739273446751,-500.0,0.00010958,2]
[352721230,1739273446762,-500.0,0.00010958,2]
[352721232,1739273446771,-3211.56,0.00010958,2]
[352721234,1739273446781,-621.35,0.00010958,2]
[352721235,1739273446791,-1555.34,0.00010958,2]
[352721236,1739273446801,-1966.68,0.00010958,2]
[352721237,1739273446811,-2746.66,0.00010958,2]
[352721238,1739273446820,-500.0,0.00010958,2]
[352721239,1739273446830,-592.37,0.00010958,2]
[352721240,1739273446839,-5590.08,0.00010958,2]
[352721241,1739273446849,-2207.37,0.00010958,2]
[352721242,1739273446858,-500.0,0.00010958,2]
[352721243,1739273446868,-1293.09,0.00010958,2]
[352721244,1739273446877,-2289.69,0.00010958,2]
[352721245,1739273446887,-1996.83,0.00010958,2]
[352721246,1739273446896,-3200.15,0.00010958,2]
[352721247,1739273446905,-500.0,0.00010958,2]
[352721248,1739273446915,-500.0,0.00010958,2]
[352721249,1739273446924,-500.0,0.00010958,2]
[352721250,1739273446933,-3245.25,0.00010958,2]
[352721251,1739273446942,-3258.65,0.00010958,2]
[352721252,1739273446952,-500.0,0.00010958,2]
[352721253,1739273446961,-500.0,0.00010958,2]
[352721254,1739273446971,-2615.86,0.00010958,2]
[352721255,1739273446980,-500.0,0.00010958,2]
[352721256,1739273446989,-2335.33,0.00010958,2]
[352721257,1739273446998,-2371.25,0.00010958,2]
[352721258,1739273447007,-575.7,0.00010958,2]
[352721259,1739273447017,-500.0,0.00010958,2]
[352721260,1739273447027,-1727.26,0.00010958,2]
[352721261,1739273447036,-500.0,0.00010958,2]
[352721262,1739273447045,-563.76,0.00010958,2]
[352721263,1739273447054,-2601.14,0.00010958,2]
[352721264,1739273447063,-500.0,0.00010958,2]
[352721265,1739273447072,-500.0,0.00010958,2]
[352721266,1739273447082,-580.86,0.00010958,2]
[352721267,1739273447091,-1000.0,0.00010958,2]
[352721268,1739273447100,-500.0,0.00010958,2]
[352721269,1739273447109,-2239.45,0.00010958,2]
[352721270,1739273447119,-505.41386426,0.00010958,2]
[352721271,1739273447128,-2587.49,0.00010958,2]
[352721272,1739273447137,-500.0,0.00010958,2]
[352721273,1739273447146,-1973.82,0.00010958,2]
[352721274,1739273447155,-500.0,0.00010958,2]
[352721275,1739273447164,-3015.1,0.00010958,2]
[352721276,1739273447173,-500.0,0.00010958,2]
[352721277,1739273447183,-500.0,0.00010958,2]
[352721278,1739273447192,-1309.37,0.00010958,2]
[352721279,1739273447202,-500.0,0.00010958,2]
[352721280,1739273447211,-3692.33,0.00010958,2]
[352721281,1739273447220,-516.84,0.00010958,2]
[352721282,1739273447230,-500.0,0.00010958,2]
[352721283,1739273447239,-2264.25,0.00010958,2]
[352721284,1739273447248,-500.0,0.00010958,2]
[352721285,1739273447258,-600.42,0.00010958,2]
[352721286,1739273447268,-500.0,0.00010958,2]
[352721287,1739273447278,-500.0,0.00010958,2]
[352721288,1739273447287,-1439.12,0.00010958,2]
[352721289,1739273447297,-1740.62,0.00010958,2]
[352721290,1739273447306,-500.0,0.00010958,2]
[352721291,1739273447316,-2178.86,0.00010958,2]
[352721292,1739273447326,-1934.99,0.00010958,2]
[352721293,1739273447335,-500.0,0.00010958,2]
[352721294,1739273447345,-505.13130001,0.00010958,2]
[352721295,1739273447354,-721.0,0.00010958,2]
[352721296,1739273447364,-500.0,0.00010958,2]
[352721297,1739273447374,-3170.59,0.00010958,2]
[352721298,1739273447384,-500.0,0.00010958,2]
[352721299,1739273447393,-2309.92,0.00010958,2]
[352721300,1739273447403,-1015.55,0.00010958,2]
[352721301,1739273447413,-500.0,0.00010958,2]
[352721302,1739273447424,-500.0,0.00010958,2]
[352721303,1739273447437,-500.0,0.00010958,2]
[352721304,1739273447447,-500.0,0.00010958,2]
[352721305,1739273447456,-500.0,0.00010958,2]
[352721306,1739273447465,-2859.71,0.00010958,2]
[352721307,1739273447477,-972.93,0.00010958,2]
[352721308,1739273447486,-785.61,0.00010958,2]
[352721309,1739273447496,-500.0,0.00010958,2]
[352721310,1739273447506,-503.91,0.00010958,2]
[352721311,1739273447516,-500.0,0.00010958,2]
[352721312,1739273447526,-1275.34,0.00010958,2]
[352721313,1739273447536,-500.0,0.00010958,2]
[352721314,1739273447546,-500.0,0.00010958,2]
[352721315,1739273447556,-500.0,0.00010958,2]
[352721316,1739273447566,-1698.93,0.00010958,2]
[352721317,1739273447576,-510.05817613,0.00010958,2]
[352721318,1739273447585,-1684.34,0.00010958,2]
[352721319,1739273447595,-1420.5,0.00010958,2]
[352721320,1739273447605,-1031.1,0.00010958,2]
[352721321,1739273447616,-500.0,0.00010958,2]
[352721322,1739273447625,-1004.52,0.00010958,2]
[352721323,1739273447636,-500.0,0.00010958,2]
[352721324,1739273447646,-741.17,0.00010958,2]
[352721325,1739273447655,-1426.28,0.00010958,2]
[352721326,1739273447666,-80719.44684495,0.00010958,2]
[352721327,1739273447676,-508.33,0.00010958,2]
[352721328,1739273447687,-493.49,0.00010958,2]
[352721329,1739273447698,-579.72096494,0.00010958,2]
[352721330,1739273447709,-1200.0,0.0001096,2]
[352721331,1739273447720,-500.0,0.0001096,2]
[352721332,1739273447732,-150.0,0.00010971,2]
[352721333,1739273447743,-173.38009909,0.00010976,2]
[352721334,1739273447753,-605.49827636,0.00010995,2]
[352721335,1739273447764,-150.0,0.00010995,2]
[352721336,1739273447775,-150.0,0.00010998,2]
[352721337,1739273447786,-172.9679767,0.00010999,2]
[352721338,1739273447795,-150.0,0.00010999,2]
[352721339,1739273447805,-28662.28394242,0.00011,2]
[352721340,1739273447815,-135691.07290592,0.00011,2]
[352721341,1739273448239,-501.92,0.00010958,2]
[352721342,1739273448249,-418.63684903,0.00011,2]
[352721343,1739273448270,-1486.46821,0.00011,2]
[352721344,1739273448286,-446.99217073,0.00011,2]
[352721345,1739273448299,-6833.65939951,0.00011,2]
[352721346,1739273448313,-5034.19226349,0.00011,2]
[352721347,1739273460797,1000.0,8.668e-05,2]
[352721348,1739273460947,500.0,8.668e-05,2]
[352721349,1739273463099,1100.0,8.668e-05,2]
[352721350,1739273560965,534.58,8.219e-05,2]
[352721360,1739274199331,288.72,8.801e-05,2]
[352721363,1739274253369,200.10344361,8.319e-05,2]
[352721364,1739274507007,203.48458835,8.757e-05,2]
[352721367,1739274543843,-1707.3318,8.836e-05,2]
[352721368,1739274543872,-338.6682,8.851e-05,2]
[352721369,1739274582173,507.85,8.219e-05,2]
[352721373,1739274631427,-544.80401356,9.166e-05,2]
[352721374,1739274631439,-800.89598644,9.166e-05,2]
[352721375,1739274631448,-2880.99,9.277e-05,2]
[352721376,1739274631458,-1000.0,9.314e-05,2]
[352721377,1739274631467,-150.0,9.644e-05,2]
[352721378,1739274631476,-26115.80558052,9.67e-05,2]
[352721379,1739274631486,-156.69,9.67e-05,2]
[352721380,1739274631496,-1791.74,9.67e-05,2]
[352721381,1739274631506,-156.69,9.674e-05,2]
[352721382,1739274631515,-156.69,9.678e-05,2]
[352721383,1739274631525,-156.69,9.682e-05,2]
[352721384,1739274631534,-156.69,9.686e-05,2]
[352721385,1739274631544,-156.69,9.69e-05,2]
[352721386,1739274631553,-156.69,9.694e-05,2]
[352721387,1739274631562,-156.69,9.698e-05,2]
[352721388,1739274631572,-156.69,9.702e-05,2]
[352721389,1739274631581,-156.69,9.706e-05,2]
[352721390,1739274631591,-156.69,9.71e-05,2]
[352721391,1739274631600,-156.69,9.714e-05,2]
[352721392,1739274631610,-156.69,9.718e-05,2]
[352721393,1739274631619,-250.0,9.805e-05,2]
[352721394,1739274631629,-1227.56,9.909e-05,2]
[352721395,1739274631639,-885.25,9.937e-05,2]
[352721396,1739274631649,-167.7,9.97e-05,2]
[352721397,1739274631659,-1800.62,0.00010037,2]
[352721398,1739274631668,-492.22,0.00010038,2]
[352721399,1739274631678,-1000.0,0.00010038,2]
[352721400,1739274631687,-500.0,0.00010038,2]
[352721401,1739274631697,-1100.0,0.00010038,2]
[352721402,1739274631706,-503.03,0.00010038,2]
[352721403,1739274631716,-498.99,0.00010038,2]
[352721404,1739274631725,-498.22,0.00010038,2]
[352721405,1739274631736,-493.27,0.00010038,2]
[352721406,1739274631746,-233.65,0.00010041,2]
[352721407,1739274631755,-222.07,0.00010046,2]
[352721408,1739274631765,-212.19,0.00010137,2]
[352721409,1739274631774,-507.85,0.00010432,2]
[352721410,1739274631784,-1000.0,0.00010478,2]
[352721411,1739274631793,-150.15,0.00010537,2]
[352721412,1739274631807,-152.69,0.00010538,2]
[352721413,1739274631816,-151.61,0.00010538,2]
[352721414,1739274631825,-300.66326871,0.00010858,2]
[352721415,1739274631835,-1510.1511011,0.0001089,2]
[352721417,1739274631859,-18.5929489,0.0001089,2]
[352721419,1739274631869,-150.0,0.00010921,2]
[352721421,1739274631879,-150.0,0.00010941,2]
[352721423,1739274631889,-150.0,0.00010954,2]
[352721424,1739274631898,-1001.328328,0.00010958,2]
[352721425,1739274631908,-156.509938,0.00010958,2]
[352721426,1739274631917,-500.0,0.00010958,2]
[352721427,1739274631927,-500.0,0.00010958,2]
[352721428,1739274631936,-500.0,0.00010958,2]
[352721429,1739274631946,-500.0,0.00010958,2]
[352721431,1739274631956,-500.0,0.00010958,2]
[352721433,1739274631966,-500.0,0.00010958,2]
[352721434,1739274631975,-500.0,0.00010958,2]
[352721435,1739274631984,-500.0,0.00010958,2]
[352721436,1739274631994,-500.0,0.00010958,2]
[352721437,1739274632003,-500.0,0.00010958,2]
[352721438,1739274632012,-768.607464,0.00010958,2]
[352721439,1739274632022,-500.0,0.00010958,2]
[352721440,1739274632031,-500.0,0.00010958,2]
[352721441,1739274632040,-500.0,0.00010958,2]
[352721442,1739274632049,-500.0,0.00010958,2]
[352721443,1739274632058,-500.0,0.00010958,2]
[352721444,1739274632068,-500.0,0.00010958,2]
[352721445,1739274632077,-500.0,0.00010958,2]
[352721446,1739274632086,-62.40067984,0.00010958,2]
[352721447,1739274632170,-437.59932016,0.00010958,2]
[352721448,1739274632179,-500.0,0.00010958,2]
[352721449,1739274632189,-500.0,0.00010958,2]
[352721450,1739274632198,-500.0,0.00010958,2]
[352721451,1739274632207,-263.97860821,0.00010958,2]
[352721452,1739274632226,-236.02139179,0.00010958,2]
[352721453,1739274632235,-600.74,0.00010958,2]
[352721454,1739274632244,-500.0,0.00010958,2]
[352721455,1739274632253,-500.0,0.00010958,2]
[352721456,1739274632262,-632.17552215,0.00010958,2]
[352721457,1739274632271,-631.78327099,0.00010958,2]
[352721458,1739274632280,-500.0,0.00010958,2]
[352721459,1739274632289,-500.0,0.00010958,2]
[352721460,1739274632298,-500.0,0.00010958,2]
[352721461,1739274632308,-500.0,0.00010958,2]
[352721462,1739274632317,-500.0,0.00010958,2]
[352721463,1739274632327,-500.0,0.00010958,2]
[352721464,1739274632335,-500.0,0.00010958,2]
[352721465,1739274632345,-500.0,0.00010958,2]
[352721466,1739274632354,-694.34,0.00010958,2]
[352721467,1739274632363,-500.0,0.00010958,2]
[352721468,1739274632372,-500.0,0.00010958,2]
[352721469,1739274632381,-500.0,0.00010958,2]
[352721470,1739274632390,-500.0,0.00010958,2]
[352721471,1739274632400,-500.0,0.00010958,2]
[352721472,1739274632409,-500.0,0.00010958,2]
[352721473,1739274632419,-500.0,0.00010958,2]
[352721474,1739274632428,-500.0,0.00010958,2]
[352721475,1739274632437,-500.0,0.00010958,2]
[352721476,1739274632446,-500.0,0.00010958,2]
[352721477,1739274632455,-824.47,0.00010958,2]
[352721478,1739274632464,-500.0,0.00010958,2]
[352721479,1739274632473,-500.0,0.00010958,2]
[352721480,1739274632482,-500.0,0.00010958,2]
[352721481,1739274632492,-500.0,0.00010958,2]
[352721482,1739274632500,-500.0,0.00010958,2]
[352721483,1739274632510,-500.0,0.00010958,2]
[352721484,1739274632519,-500.0,0.00010958,2]
[352721485,1739274632529,-500.0,0.00010958,2]
[352721486,1739274632538,-500.0,0.00010958,2]
[352721487,1739274632546,-500.0,0.00010958,2]
[352721488,1739274632556,-500.0,0.00010958,2]
[352721489,1739274632565,-500.0,0.00010958,2]
[352721490,1739274632575,-500.0,0.00010958,2]
[352721491,1739274632583,-500.0,0.00010958,2]
[352721492,1739274632593,-500.0,0.00010958,2]
[352721493,1739274632602,-500.0,0.00010958,2]
[352721494,1739274632611,-500.0,0.00010958,2]
[352721495,1739274632620,-500.0,0.00010958,2]
[352721496,1739274632629,-500.0,0.00010958,2]
[352721497,1739274632638,-633.39,0.00010958,2]
[352721498,1739274632647,-500.0,0.00010958,2]
[352721499,1739274632656,-733.93,0.00010958,2]
[352721500,1739274632666,-500.0,0.00010958,2]
[352721501,1739274632674,-500.0,0.00010958,2]
[352721502,1739274632683,-500.0,0.00010958,2]
[352721503,1739274632693,-500.0,0.00010958,2]
[352721504,1739274632703,-500.0,0.00010958,2]
[352721505,1739274632712,-500.0,0.00010958,2]
[352721506,1739274632721,-500.0,0.00010958,2]
[352721507,1739274632730,-500.0,0.00010958,2]
[352721508,1739274632739,-151.0,0.00010958,2]
[352721509,1739274632749,-546.38892662,0.00010958,2]
[352721510,1739274632758,-500.0,0.00010958,2]
[352721511,1739274632767,-500.0,0.00010958,2]
[352721512,1739274632776,-500.0,0.00010958,2]
[352721513,1739274632785,-500.0,0.00010958,2]
[352721514,1739274632795,-500.0,0.00010958,2]
[352721515,1739274632806,-500.0,0.00010958,2]
[352721516,1739274632815,-500.0,0.00010958,2]
[352721517,1739274632825,-500.0,0.00010958,2]
[352721518,1739274632834,-500.0,0.00010958,2]
[352721519,1739274632843,-988.14,0.00010958,2]
[352721520,1739274632853,-500.0,0.00010958,2]
[352721521,1739274632863,-1361.31,0.00010958,2]
[352721522,1739274632872,-507.33721777,0.00010958,2]
[352721523,1739274632883,-151.0,0.00010958,2]
[352721524,1739274632893,-500.0,0.00010958,2]
[352721525,1739274632904,-500.0,0.00010958,2]
[352721526,1739274632913,-1014.31,0.00010958,2]
[352721527,1739274632921,-500.0,0.00010958,2]
[352721528,1739274632930,-1366.85,0.00010958,2]
[352721529,1739274632939,-1222.06,0.00010958,2]
[352721530,1739274632948,-500.0,0.00010958,2]
[352721531,1739274632957,-500.0,0.00010958,2]
[352721532,1739274632966,-500.0,0.00010958,2]
[352721533,1739274632975,-500.0,0.00010958,2]
[352721534,1739274632985,-500.0,0.00010958,2]
[352721535,1739274632994,-690.96,0.00010958,2]
[352721536,1739274633003,-500.0,0.00010958,2]
[352721537,1739274633013,-500.0,0.00010958,2]
[352721538,1739274633022,-840.9,0.00010958,2]
[352721539,1739274633032,-500.0,0.00010958,2]
[352721540,1739274633042,-500.0,0.00010958,2]
[352721541,1739274633051,-500.0,0.00010958,2]
[352721542,1739274633061,-500.0,0.00010958,2]
[352721543,1739274633071,-500.0,0.00010958,2]
[352721544,1739274633080,-500.0,0.00010958,2]
[352721545,1739274633090,-346.32723866,0.00010958,2]
[352721546,1739274633131,-153.67276134,0.00010958,2]
[352721547,1739274633140,-500.0,0.00010958,2]
[352721548,1739274633150,-968.67,0.00010958,2]
[352721549,1739274633160,-100.62242353,0.00010958,2]
[352721550,1739274633171,-399.37757647,0.00010958,2]
[352721551,1739274633181,-176.83,0.00010958,2]
[352721552,1739274633190,-500.0,0.00010958,2]
[352721553,1739274633199,-538.8,0.00010958,2]
[352721554,1739274633209,-500.0,0.00010958,2]
[352721555,1739274633218,-626.6,0.00010958,2]
[352721556,1739274633227,-764.06,0.00010958,2]
[352721557,1739274633237,-500.0,0.00010958,2]
[352721558,1739274633247,-177.84598313,0.00010958,2]
[352721560,1739274637497,-322.15401687,0.00010958,2]
[352721561,1739274637507,-500.0,0.00010958,2]
[352721562,1739274637516,-199.65738285,0.00010958,2]
[352721563,1739274637528,-300.34261715,0.00010958,2]
[352721564,1739274637538,-500.0,0.00010958,2]
[352721565,1739274637547,-65.34630899,0.00010958,2]
[352721567,1739274637659,-1235.44369101,0.00010958,2]
[352721568,1739274637669,-134.27061299,0.00010958,2]
[352721698,1739274639374,-942.60962136,0.00010958,2]
[352721699,1739274639480,-9.05976565,0.00010958,2]
[352721700,1739274639489,-500.0,0.00010958,2]
[352721701,1739274639498,-486.33043329,0.00010958,2]
[352721702,1739274639510,-13.66956671,0.00010958,2]
[352721703,1739274639518,-784.86,0.00010958,2]
[352721704,1739274639527,-142.51043329,0.00010958,2]
[352721709,1739274642712,-868.07956671,0.00010958,2]
[352721710,1739274642722,-500.0,0.00010958,2]
[352721711,1739274642731,-500.0,0.00010958,2]
[352721712,1739274642740,-619.06,0.00010958,2]
[352721713,1739274642750,-500.0,0.00010958,2]
[352721714,1739274642759,-500.0,0.00010958,2]
[352721715,1739274642768,-854.94,0.00010958,2]
[352721716,1739274642777,-1028.23,0.00010958,2]
[352721717,1739274642786,-500.0,0.00010958,2]
[352721718,1739274642796,-500.0,0.00010958,2]
[352721719,1739274642806,-661.57,0.00010958,2]
[352721720,1739274642817,-507.52,0.00010958,2]
[352721721,1739274642827,-267.34504154,0.00010958,2]
[352721722,1739274642838,-232.65495846,0.00010958,2]
[352721723,1739274642847,-992.17,0.00010958,2]
[352721724,1739274642856,-500.0,0.00010958,2]
[352721725,1739274642865,-500.0,0.00010958,2]
[352721726,1739274642874,-500.0,0.00010958,2]
[352721727,1739274642883,-378.53324154,0.00010958,2]
[352721764,1739274645629,-175.04675846,0.00010958,2]
[352721765,1739274645638,-515.05,0.00010958,2]
[352721766,1739274645648,-500.0,0.00010958,2]
[352721767,1739274645659,-500.0,0.00010958,2]
[352721768,1739274645668,-746.27,0.00010958,2]
[352721769,1739274645678,-500.0,0.00010958,2]
[352721770,1739274645688,-500.0,0.00010958,2]
[352721771,1739274645698,-500.0,0.00010958,2]
[352721772,1739274645707,-341.08778122,0.00010958,2]
[352721773,1739274645719,-451.01221878,0.00010958,2]
[352721774,1739274645728,-889.94420979,0.00010958,2]
[352721775,1739274645740,-16.49579021,0.00010958,2]
[352721776,1739274645750,-522.0,0.00010958,2]
[352721777,1739274645760,-500.0,0.00010958,2]
[352721778,1739274645770,-500.0,0.00010958,2]
[352721779,1739274645780,-500.0,0.00010958,2]
[352721780,1739274645789,-500.0,0.00010958,2]
[352721782,1739274645799,-500.0,0.00010958,2]
[352721784,1739274645810,-832.25,0.00010958,2]
[352721786,1739274645821,-894.2,0.00010958,2]
[352721788,1739274645831,-500.0,0.00010958,2]
[352721790,1739274645840,-609.64,0.00010958,2]
[352721791,1739274645850,-500.0,0.00010958,2]
[352721792,1739274645861,-639.82,0.00010958,2]
[352721793,1739274645870,-500.0,0.00010958,2]
[352721794,1739274645880,-500.0,0.00010958,2]
[352721795,1739274645891,-500.0,0.00010958,2]
[352721796,1739274645901,-516.7,0.00010958,2]
[352721797,1739274645913,-500.0,0.00010958,2]
[352721798,1739274645923,-1053.71,0.00010958,2]
[352721799,1739274645933,-500.0,0.00010958,2]
[352721800,1739274645943,-500.0,0.00010958,2]
[352721802,1739274645952,-1082.34,0.00010958,2]
[352721804,1739274645962,-500.0,0.00010958,2]
[352721805,1739274645972,-500.0,0.00010958,2]
[352721806,1739274645982,-962.02,0.00010958,2]
[352721807,1739274645992,-500.0,0.00010958,2]
[352721808,1739274646002,-500.0,0.00010958,2]
[352721809,1739274646011,-500.0,0.00010958,2]
[352721810,1739274646021,-500.0,0.00010958,2]
[352721811,1739274646031,-1148.67,0.00010958,2]
[352721812,1739274646040,-810.71,0.00010958,2]
[352721813,1739274646050,-500.0,0.00010958,2]
[352721814,1739274646059,-168.067565,0.00010958,2]
[352721815,1739274646068,-227.96429479,0.00010958,2]
[352721816,1739274646096,-272.03570521,0.00010958,2]
[352721817,1739274646105,-37.37929479,0.00010958,2]
[352721818,1739274659164,790.5831,8.699e-05,2]
[352721819,1739274675922,500.0,8.668e-05,2]
[352721820,1739274676440,900.0,8.668e-05,2]
[352721821,1739274676979,900.0,8.668e-05,2]
[352721822,1739274684738,-2500.0,8.851e-05,2]
[352721823,1739274687080,4500.0,8.801e-05,2]
[352721824,1739274705078,352.2626,8.256e-05,2]
[352721825,1739274773739,-3165.7087,8.973e-05,2]
[352721846,1739275634029,478.68,8.219e-05,2]
[352721906,1739275837561,-420.8141,8.836e-05,2]